fUST/lending_fUST_20240820
["ID","MTS","AMOUNT","RATE_DAILY","PERIOD"]
[335332798,1724118649865,-622.91006892,0.00016986,2]
[335332799,1724118649880,-500.0,0.00016986,2]
[335332800,1724118649892,-500.0,0.00016986,2]
[335332801,1724118649903,-500.0,0.00016986,2]
[335332802,1724118649914,-500.0,0.00016986,2]
[335332803,1724118649926,-500.0,0.00016986,2]
[335332804,1724118649937,-366.9611331,0.00016986,2]
[335332805,1724118649947,-243.09936939,0.00016986,2]
[335332806,1724118649956,-864.38,0.00016986,2]
[335332807,1724118649965,-500.0,0.00016986,2]
[335332808,1724118649975,-977.21,0.00016986,2]
[335332809,1724118649984,-500.0,0.00016986,2]
[335332810,1724118649995,-500.0,0.00016986,2]
[335332811,1724118650006,-696.53,0.00016986,2]
[335332812,1724118650017,-500.0,0.00016986,2]
[335332813,1724118650028,-498.79797233,0.00017032,2]
[335332814,1724118650038,-300.0,0.000171,6]
[335332815,1724118650051,-151.0,0.000171,2]
[335332816,1724118650061,-152.080001,0.000171,2]
[335332817,1724118650071,-603.0,0.000171,2]
[335332818,1724118650082,-6343.923,0.00017162,2]
[335332819,1724118650093,-500.0,0.0001726,2]
[335332820,1724118650104,-500.0,0.0001726,2]
[335332821,1724118650114,-500.0,0.0001726,2]
[335332822,1724118650125,-500.0,0.0001726,2]
[335332823,1724118650135,-500.0,0.0001726,2]
[335332824,1724118650145,-500.0,0.0001726,2]
[335332825,1724118650154,-509.95109212,0.0001726,2]
[335332826,1724118650165,-500.0,0.0001726,2]
[335332827,1724118650175,-500.0,0.0001726,2]
[335332828,1724118650184,-500.0,0.0001726,2]
[335332829,1724118650194,-500.0,0.0001726,2]
[335332830,1724118650203,-500.0,0.0001726,2]
[335332831,1724118650213,-500.0,0.0001726,2]
[335332832,1724118650225,-500.0,0.0001726,2]
[335332833,1724118650234,-500.0,0.0001726,2]
[335332834,1724118650243,-500.0,0.0001726,2]
[335332835,1724118650253,-500.0,0.0001726,2]
[335332836,1724118650263,-447.6791988,0.0001726,2]
[335332837,1724118650272,-500.0,0.0001726,2]
[335332838,1724118650281,-500.0,0.0001726,2]
[335332839,1724118650291,-500.0,0.0001726,2]
[335332840,1724118650301,-500.0,0.0001726,2]
[335332841,1724118650314,-500.0,0.0001726,2]
[335332842,1724118650323,-521.41312079,0.0001726,2]
[335332843,1724118650332,-500.0,0.0001726,2]
[335332844,1724118650342,-500.0,0.0001726,2]
[335332845,1724118650351,-500.0,0.0001726,2]
[335332846,1724118650360,-632.12,0.0001726,2]
[335332847,1724118650370,-500.0,0.0001726,2]
[335332848,1724118650379,-500.0,0.0001726,2]
[335332849,1724118650388,-500.0,0.0001726,2]
[335332850,1724118650398,-500.0,0.0001726,2]
[335332851,1724118650407,-151.0,0.0001726,2]
[335332852,1724118650417,-152.352553,0.0001726,2]
[335332853,1724118650426,-500.0,0.0001726,2]
[335332854,1724118650436,-503.7228543,0.0001726,2]
[335332855,1724118650445,-152.598414,0.0001726,2]
[335332856,1724118650454,-500.0,0.0001726,2]
[335332857,1724118650464,-500.0,0.0001726,2]
[335332858,1724118650473,-500.0,0.0001726,2]
[335332859,1724118650482,-500.0,0.0001726,2]
[335332860,1724118650492,-500.0,0.0001726,2]
[335332861,1724118650501,-500.0,0.0001726,2]
[335332862,1724118650511,-500.0,0.0001726,2]
[335332863,1724118650521,-500.0,0.0001726,2]
[335332864,1724118650530,-151.0,0.0001726,2]
[335332865,1724118650540,-500.0,0.0001726,2]
[335332866,1724118650549,-2229.03,0.0001726,2]
[335332867,1724118650559,-151.360766,0.0001726,2]
[335332868,1724118650568,-151.0,0.0001726,2]
[335332869,1724118650579,-500.0,0.0001726,2]
[335332870,1724118650589,-437.18905375,0.0001726,2]
[335332871,1724118650599,-500.0,0.0001726,2]
[335332872,1724118650608,-500.0,0.0001726,2]
[335332873,1724118650618,-186.42402896,0.0001726,2]
[335332874,1724118650627,-500.0,0.0001726,2]
[335332875,1724118650637,-500.0,0.0001726,2]
[335332876,1724118650646,-1101.13,0.0001726,2]
[335332877,1724118650656,-500.0,0.0001726,2]
[335332878,1724118650665,-500.0,0.0001726,2]
[335332879,1724118650674,-500.0,0.0001726,2]
[335332880,1724118650683,-500.0,0.0001726,2]
[335332881,1724118650692,-899.37,0.0001726,2]
[335332882,1724118650702,-500.0,0.0001726,2]
[335332883,1724118650711,-500.0,0.0001726,2]
[335332884,1724118650721,-500.0,0.0001726,2]
[335332885,1724118650731,-500.0,0.0001726,2]
[335332886,1724118650740,-500.0,0.0001726,2]
[335332887,1724118650749,-500.0,0.0001726,2]
[335332888,1724118650759,-160.21078595,0.0001726,2]
[335332889,1724118650768,-500.0,0.0001726,2]
[335332890,1724118650778,-2589.62,0.0001726,2]
[335332891,1724118650787,-500.0,0.0001726,2]
[335332892,1724118650796,-500.0,0.0001726,2]
[335332893,1724118650805,-500.0,0.0001726,2]
[335332894,1724118650814,-500.0,0.0001726,2]
[335332895,1724118650825,-500.0,0.0001726,2]
[335332896,1724118650835,-500.0,0.0001726,2]
[335332897,1724118650844,-151.0,0.0001726,2]
[335332898,1724118650854,-151.0,0.0001726,2]
[335332899,1724118650863,-500.0,0.0001726,2]
[335332900,1724118650874,-2005.0,0.0001726,10]
[335332901,1724118650884,-512.73959899,0.0001726,2]
[335332902,1724118650893,-587.73678033,0.0001726,2]
[335332903,1724118650903,-500.0,0.0001726,2]
[335332904,1724118650912,-500.0,0.0001726,2]
[335332905,1724118650922,-500.0,0.0001726,2]
[335332906,1724118650931,-1340.06,0.0001726,2]
[335332907,1724118650941,-500.0,0.0001726,2]
[335332908,1724118650952,-1184.38,0.0001726,2]
[335332909,1724118650961,-791.44,0.0001726,2]
[335332910,1724118650971,-2931.48,0.0001726,2]
[335332911,1724118650980,-500.0,0.0001726,2]
[335332912,1724118650990,-500.0,0.0001726,2]
[335332913,1724118651000,-1400.33,0.0001726,2]
[335332914,1724118651009,-1135.71,0.0001726,2]
[335332915,1724118651020,-500.0,0.0001726,2]
[335332916,1724118651029,-500.0,0.0001726,2]
[335332917,1724118651039,-500.0,0.0001726,2]
[335332918,1724118651048,-566.89,0.0001726,2]
[335332919,1724118651058,-500.0,0.0001726,2]
[335332920,1724118651074,-3524.76,0.0001726,2]
[335332921,1724118651083,-500.0,0.0001726,2]
[335332922,1724118651093,-500.0,0.0001726,2]
[335332923,1724118651102,-447.5916972,0.0001726,2]
[335332924,1724118651112,-500.0,0.0001726,2]
[335332925,1724118651122,-500.0,0.0001726,2]
[335332926,1724118651131,-697.67,0.0001726,2]
[335332927,1724118651140,-500.0,0.0001726,2]
[335332928,1724118651150,-500.0,0.0001726,2]
[335332929,1724118651159,-500.0,0.0001726,2]
[335332930,1724118651169,-500.0,0.0001726,2]
[335332931,1724118651180,-500.0,0.0001726,2]
[335332932,1724118651189,-414.17544266,0.0001726,2]
[335332933,1724118651199,-500.0,0.0001726,2]
[335332934,1724118651208,-500.0,0.0001726,2]
[335332935,1724118651218,-500.0,0.0001726,2]
[335332936,1724118651228,-500.0,0.0001726,2]
[335332937,1724118651238,-500.0,0.0001726,2]
[335332938,1724118651248,-500.0,0.0001726,2]
[335332939,1724118651258,-500.0,0.0001726,2]
[335332940,1724118651268,-500.0,0.0001726,2]
[335332941,1724118651277,-864.38,0.0001726,2]
[335332942,1724118651287,-500.0,0.0001726,2]
[335332943,1724118651296,-977.21,0.0001726,2]
[335332944,1724118651306,-500.0,0.0001726,2]
[335332945,1724118651317,-500.0,0.0001726,2]
[335332946,1724118651326,-696.53,0.0001726,2]
[335332947,1724118651335,-500.0,0.0001726,2]
[335332948,1724118651344,-150.10745339,0.00017424,2]
[335332949,1724118651354,-373.37753599,0.00017534,2]
[335332950,1724118651364,-500.0,0.00017534,2]
[335332951,1724118651375,-500.0,0.00017534,2]
[335332952,1724118651387,-500.0,0.00017534,2]
[335332953,1724118651397,-500.0,0.00017534,2]
[335332954,1724118651407,-500.0,0.00017534,2]
[335332955,1724118651419,-500.0,0.00017534,2]
[335332956,1724118651428,-500.0,0.00017534,2]
[335332957,1724118651437,-500.0,0.00017534,2]
[335332958,1724118651447,-500.0,0.00017534,2]
[335332959,1724118651457,-500.0,0.00017534,2]
[335332960,1724118651467,-500.0,0.00017534,2]
[335332961,1724118651476,-156.544633,0.00017534,2]
[335332962,1724118651485,-500.0,0.00017534,2]
[335332963,1724118651495,-500.0,0.00017534,2]
[335332964,1724118651507,-500.0,0.00017534,2]
[335332965,1724118651519,-509.4502818,0.00017534,2]
[335332966,1724118651530,-500.0,0.00017534,2]
[335332967,1724118651542,-502.37579418,0.00017534,2]
[335332968,1724118651552,-500.0,0.00017534,2]
[335332969,1724118651563,-500.0,0.00017534,2]
[335332970,1724118651572,-500.0,0.00017534,2]
[335332971,1724118651582,-151.0,0.00017534,2]
[335332972,1724118651593,-500.0,0.00017534,2]
[335332973,1724118651604,-500.0,0.00017534,2]
[335332974,1724118651728,-500.0,0.00017534,2]
[335332975,1724118651739,-632.12,0.00017534,2]
[335332976,1724118651749,-500.0,0.00017534,2]
[335332977,1724118651759,-500.0,0.00017534,2]
[335332978,1724118651770,-500.0,0.00017534,2]
[335332979,1724118651781,-500.0,0.00017534,2]
[335332980,1724118651791,-500.0,0.00017534,2]
[335332981,1724118651801,-500.0,0.00017534,2]
[335332982,1724118651812,-500.0,0.00017534,2]
[335332983,1724118651826,-500.0,0.00017534,2]
[335332984,1724118651836,-500.0,0.00017534,2]
[335332985,1724118651847,-500.0,0.00017534,2]
[335332986,1724118651856,-500.0,0.00017534,2]
[335332987,1724118651869,-376.07257329,0.00017534,2]
[335332988,1724118651885,-505.0,0.00017534,2]
[335332989,1724118651895,-500.0,0.00017534,2]
[335332990,1724118651906,-2229.03,0.00017534,2]
[335332991,1724118651916,-500.0,0.00017534,2]
[335332992,1724118651927,-500.0,0.00017534,2]
[335332993,1724118651938,-500.0,0.00017534,2]
[335332994,1724118651947,-500.0,0.00017534,2]
[335332995,1724118651959,-500.0,0.00017534,2]
[335332996,1724118651971,-1101.13,0.00017534,2]
[335332997,1724118651983,-500.0,0.00017534,2]
[335332998,1724118651994,-500.0,0.00017534,2]
[335332999,1724118652004,-500.0,0.00017534,2]
[335333000,1724118652015,-500.0,0.00017534,2]
[335333001,1724118652026,-899.37,0.00017534,2]
[335333002,1724118652036,-500.0,0.00017534,2]
[335333003,1724118652048,-207.78983916,0.00017534,2]
[335333004,1724118652060,-500.0,0.00017534,2]
[335333005,1724118652070,-500.0,0.00017534,2]
[335333006,1724118652079,-500.0,0.00017534,2]
[335333007,1724118652089,-500.0,0.00017534,2]
[335333008,1724118652098,-500.0,0.00017534,2]
[335333009,1724118652107,-2589.62,0.00017534,2]
[335333010,1724118652117,-500.0,0.00017534,2]
[335333011,1724118652128,-500.0,0.00017534,2]
[335333012,1724118652137,-592.42154641,0.00017534,2]
[335333013,1724118652147,-500.0,0.00017534,2]
[335333014,1724118652156,-500.0,0.00017534,2]
[335333015,1724118652165,-500.0,0.00017534,2]
[335333016,1724118652175,-151.0,0.00017534,2]
[335333017,1724118652186,-151.0,0.00017534,2]
[335333018,1724118652197,-500.0,0.00017534,2]
[335333019,1724118652209,-2005.0,0.00017534,10]
[335333020,1724118652220,-500.0,0.00017534,2]
[335333021,1724118652231,-500.0,0.00017534,2]
[335333022,1724118652242,-500.0,0.00017534,2]
[335333023,1724118652252,-1340.06,0.00017534,2]
[335333024,1724118652261,-500.0,0.00017534,2]
[335333025,1724118652271,-1184.38,0.00017534,2]
[335333026,1724118652280,-791.44,0.00017534,2]
[335333027,1724118652291,-2931.48,0.00017534,2]
[335333028,1724118652303,-500.0,0.00017534,2]
[335333029,1724118652315,-500.0,0.00017534,2]
[335333030,1724118652324,-1400.33,0.00017534,2]
[335333031,1724118652335,-1135.71,0.00017534,2]
[335333032,1724118652346,-500.0,0.00017534,2]
[335333033,1724118652357,-500.0,0.00017534,2]
[335333034,1724118652367,-500.0,0.00017534,2]
[335333035,1724118652377,-566.89,0.00017534,2]
[335333036,1724118652387,-500.0,0.00017534,2]
[335333037,1724118652398,-3524.76,0.00017534,2]
[335333038,1724118652407,-500.0,0.00017534,2]
[335333039,1724118652418,-500.0,0.00017534,2]
[335333040,1724118652429,-500.0,0.00017534,2]
[335333041,1724118652439,-500.0,0.00017534,2]
[335333042,1724118652450,-697.67,0.00017534,2]
[335333043,1724118652460,-500.0,0.00017534,2]
[335333044,1724118652471,-500.0,0.00017534,2]
[335333045,1724118652482,-500.0,0.00017534,2]
[335333046,1724118652493,-640.02840925,0.00017534,2]
[335333047,1724118652502,-500.0,0.00017534,2]
[335333048,1724118652513,-151.0,0.00017534,2]
[335333049,1724118652524,-151.0,0.00017534,2]
[335333050,1724118652534,-500.0,0.00017534,2]
[335333051,1724118652545,-500.0,0.00017534,2]
[335333052,1724118652555,-500.0,0.00017534,2]
[335333053,1724118652567,-159.423542,0.00017534,2]
[335333054,1724118652577,-500.0,0.00017534,2]
[335333055,1724118652588,-159.423542,0.00017534,2]
[335333056,1724118652597,-533.32287267,0.00017534,2]
[335333057,1724118652608,-500.0,0.00017534,2]
[335333058,1724118652618,-500.0,0.00017534,2]
[335333059,1724118652629,-294.811016,0.00017534,2]
[335333060,1724118652640,-500.0,0.00017534,2]
[335333061,1724118652652,-864.38,0.00017534,2]
[335333062,1724118652662,-294.811016,0.00017534,2]
[335333063,1724118652672,-153.055463,0.00017534,2]
[335333064,1724118652682,-500.0,0.00017534,2]
[335333065,1724118652692,-151.0,0.00017534,2]
[335333066,1724118652701,-977.21,0.00017534,2]
[335333067,1724118652710,-151.0,0.00017534,2]
[335333068,1724118652719,-500.0,0.00017534,2]
[335333069,1724118652728,-500.0,0.00017534,2]
[335333070,1724118652738,-696.53,0.00017534,2]
[335333071,1724118652747,-500.0,0.00017534,2]
[335333072,1724118652756,-472.27494976,0.0001764,2]
[335333073,1724118652765,-500.0,0.00017808,2]
[335333074,1724118652775,-500.0,0.00017808,2]
[335333075,1724118652784,-500.0,0.00017808,2]
[335333076,1724118652793,-135.61324241,0.00017808,2]
[335333411,1724119838112,-310.26224505,7.911e-05,2]
[335333413,1724119838123,-300.0,8.52e-05,2]
[335333415,1724119838133,-9056.49384142,8.521e-05,2]
[335333417,1724119838145,-10521.93091311,8.521e-05,2]
[335333419,1724119838154,-1500.0,8.521e-05,2]
[335333421,1724119838164,-192.02486573,8.661e-05,2]
[335333423,1724119838173,-154.9834205,9.429e-05,2]
[335333424,1724119838183,-207.282959,9.682e-05,2]
[335333425,1724119838192,-207.282959,9.934e-05,2]
[335333426,1724119838202,-207.282959,0.00010186,2]
[335333427,1724119838212,-24900.0,0.0001135,2]
[335333428,1724119838222,-4400.11219584,0.0001212,2]
[335333430,1724119838231,-3092.99892406,0.00012516,2]
[335333432,1724119838241,-1613.93616792,0.00012516,2]
[335333434,1724119838251,-2166.4854483,0.00012551,2]
[335333436,1724119838260,-1122.50308171,0.00012779,2]
[335333438,1724119838270,-899.85552718,0.00012782,2]
[335333440,1724119838279,-745.06492842,0.00012886,2]
[335333442,1724119838289,-5447.42420451,0.000129,2]
[335333444,1724119838298,-493.36312925,0.00012971,2]
[335333446,1724119838307,-546.57976779,0.00012971,2]
[335333447,1724119838316,-198.27827148,0.00012971,2]
[335333449,1724119838326,-188.15955219,0.00012985,2]
[335333452,1724119838336,-864.24017367,0.00013,2]
[335333456,1724119838345,-229.3912635,0.00013333,2]
[335333459,1724119838354,-495.19490276,0.00013688,2]
[335333461,1724119838364,-161.35308376,0.00013698,2]
[335333463,1724119838373,-284.66042,0.00013699,2]
[335333465,1724119838382,-3000.0,0.00013699,2]
[335333467,1724119838391,-500.0,0.00013699,2]
[335333468,1724119838401,-383.67288348,0.00013699,2]
[335333469,1724119838411,-194.83065114,0.00013699,2]
[335333470,1724119838420,-161.82213514,0.00013792,2]
[335333471,1724119838429,-207.24848403,0.00013871,2]
[335333472,1724119838439,-369.406851,0.00014247,2]
[335333473,1724119838448,-695.49072,0.00014247,2]
[335333474,1724119838457,-500.0,0.00014639,2]
[335333475,1724119838470,-222.76813903,0.000149,2]
[335333476,1724119838479,-222.76813902,0.000149,2]
[335333477,1724119838489,-5447.42420451,0.00015289,2]
[335333478,1724119838499,-500.0,0.0001541,2]
[335333479,1724119838508,-362.363751,0.0001589,2]
[335333480,1724119838517,-500.0,0.00016221,2]
[335333481,1724119838526,-2000.0,0.00016228,2]
[335333482,1724119838536,-13790.9693067,0.000163,2]
[335333483,1724119838546,-10108.09188666,0.00016328,2]
[335333484,1724119838555,-229.02282561,0.00016328,2]
[335333485,1724119838564,-26924.47550629,0.00016338,2]
[335333486,1724119838577,-720.84043094,0.00016338,2]
[335333487,1724119838588,-806.37061774,0.00016338,2]
[335333542,1724119839339,5000.0,7.77e-05,2]
[335333554,1724119840435,-11548.31344503,0.00016338,2]
[335333556,1724119840445,-549.06249031,0.00016437,2]
[335333558,1724119840454,-500.0,0.00016437,2]
[335333559,1724119840463,-178.92492299,0.00016437,2]
[335333561,1724119840473,-500.0,0.00016437,2]
[335333563,1724119840483,-500.0,0.00016437,2]
[335333565,1724119840492,-500.0,0.00016437,2]
[335333567,1724119840501,-500.0,0.00016437,2]
[335333569,1724119840511,-500.0,0.00016437,2]
[335333571,1724119840521,-500.0,0.00016437,2]
[335333573,1724119840531,-500.0,0.00016437,2]
[335333575,1724119840540,-500.0,0.00016437,2]
[335333577,1724119840550,-500.0,0.00016437,2]
[335333579,1724119840560,-250.89793845,0.00016437,2]
[335333581,1724119840570,-500.67286168,0.00016438,2]
[335333583,1724119840580,-501.55862474,0.00016438,2]
[335333586,1724119840590,-517.64792343,0.00016438,2]
[335333587,1724119840599,-500.76219701,0.00016438,2]
[335333590,1724119840609,-620.02990399,0.00016438,2]
[335333592,1724119840619,-501.58266784,0.00016438,2]
[335333594,1724119840628,-503.63909572,0.00016438,2]
[335333596,1724119840638,-501.96735134,0.00016438,2]
[335333598,1724119840648,-500.0,0.00016438,2]
[335333600,1724119840657,-413.48390525,0.00016438,2]
[335333602,1724119840667,-502.9669734,0.00016438,2]
[335333604,1724119840677,-500.74606333,0.00016438,2]
[335333606,1724119840686,-502.39760241,0.00016438,2]
[335333608,1724119840696,-503.28953034,0.00016438,2]
[335333610,1724119840706,-514.64552276,0.00016438,2]
[335333612,1724119840715,-500.0,0.00016438,2]
[335333614,1724119840731,-500.0,0.00016438,2]
[335333616,1724119840740,-501.04921057,0.00016438,2]
[335333618,1724119840750,-500.0,0.00016438,2]
[335333620,1724119840759,-504.30366329,0.00016438,2]
[335333622,1724119840769,-503.65813147,0.00016438,2]
[335333624,1724119840779,-502.90282153,0.00016438,2]
[335333626,1724119840788,-501.40617426,0.00016438,2]
[335333628,1724119840799,-503.95667663,0.00016438,2]
[335333630,1724119840808,-500.0,0.00016438,2]
[335333632,1724119840818,-503.1903145,0.00016438,2]
[335333634,1724119840829,-500.0,0.00016438,2]
[335333636,1724119840839,-500.0,0.00016438,2]
[335333639,1724119840850,-503.3019901,0.00016438,2]
[335333641,1724119840859,-413.07994644,0.00016438,2]
[335333642,1724119840869,-500.0,0.00016438,2]
[335333643,1724119840878,-503.26907935,0.00016438,2]
[335333644,1724119840888,-504.20175526,0.00016438,2]
[335333645,1724119840898,-512.02972142,0.00016438,2]
[335333646,1724119840907,-501.47937727,0.00016438,2]
[335333647,1724119840917,-511.74623281,0.00016438,2]
[335333648,1724119840926,-261.19666928,0.00016438,2]
[335333649,1724119840936,-500.0,0.00016438,2]
[335333650,1724119840946,-505.46271698,0.00016438,2]
[335333651,1724119840959,-520.75577685,0.00016438,2]
[335333652,1724119840969,-500.0,0.00016438,2]
[335333653,1724119840978,-502.70073068,0.00016438,2]
[335333654,1724119840988,-510.99689723,0.00016438,2]
[335333655,1724119840999,-500.0,0.00016438,2]
[335333656,1724119841009,-501.21375625,0.00016438,2]
[335333657,1724119841019,-170.9044107,0.00016438,2]
[335333658,1724119841029,-505.3425551,0.00016438,2]
[335333659,1724119841039,-506.80947654,0.00016438,2]
[335333660,1724119841049,-501.0832935,0.00016438,2]
[335333661,1724119841058,-502.61136447,0.00016438,2]
[335333662,1724119841068,-502.83729578,0.00016438,2]
[335333663,1724119841078,-500.0,0.00016438,2]
[335333664,1724119841088,-501.87366289,0.00016438,2]
[335333665,1724119841098,-500.0,0.00016438,2]
[335333666,1724119841108,-500.0,0.00016438,2]
[335333667,1724119841117,-500.0,0.00016438,2]
[335333668,1724119841127,-500.0,0.00016438,2]
[335333669,1724119841136,-500.0,0.00016438,2]
[335333670,1724119841146,-500.0,0.00016438,2]
[335333671,1724119841156,-500.0,0.00016438,2]
[335333672,1724119841165,-500.0,0.00016438,2]
[335333673,1724119841174,-500.0,0.00016438,2]
[335333674,1724119841184,-500.0,0.00016438,2]
[335333675,1724119841193,-500.0,0.00016438,2]
[335333676,1724119841203,-500.0,0.00016438,2]
[335333677,1724119841213,-500.0,0.00016438,2]
[335333678,1724119841226,-519.64591166,0.00016438,2]
[335333679,1724119841236,-500.0,0.00016438,2]
[335333680,1724119841246,-501.77249862,0.00016438,2]
[335333681,1724119841255,-500.90486467,0.00016438,2]
[335333682,1724119841265,-501.62464489,0.00016438,2]
[335333683,1724119841275,-529.11487289,0.00016438,2]
[335333684,1724119841285,-500.0,0.00016438,2]
[335333685,1724119841295,-431.74069529,0.00016438,2]
[335333686,1724119841304,-500.0,0.00016438,2]
[335333687,1724119841314,-501.15381276,0.00016438,2]
[335333688,1724119841323,-500.0,0.00016438,2]
[335333689,1724119841333,-500.0,0.00016438,2]
[335333690,1724119841343,-506.23259312,0.00016438,2]
[335333691,1724119841354,-500.0,0.00016438,2]
[335333692,1724119841364,-500.0,0.00016438,2]
[335333693,1724119841375,-500.0,0.00016438,2]
[335333694,1724119841385,-155.93219572,0.00016438,2]
[335333695,1724119841396,-396.90635721,0.00016438,2]
[335333696,1724119841406,-518.3103585,0.00016438,2]
[335333697,1724119841415,-502.28822342,0.00016438,2]
[335333698,1724119841425,-508.78246531,0.00016438,2]
[335333699,1724119841435,-502.31613025,0.00016438,2]
[335333700,1724119841444,-500.0,0.00016438,2]
[335333701,1724119841453,-500.71444361,0.00016438,2]
[335333702,1724119841462,-602.89016968,0.00016438,2]
[335333703,1724119841473,-511.29830038,0.00016438,2]
[335333704,1724119841482,-163.83477856,0.00016438,2]
[335333705,1724119841491,-501.66249609,0.00016438,2]
[335333706,1724119841502,-448.68916869,0.00016438,2]
[335333707,1724119841511,-500.0,0.00016438,2]
[335333708,1724119841522,-504.50920809,0.00016438,2]
[335333709,1724119841531,-500.0,0.00016438,2]
[335333710,1724119841541,-502.37188896,0.00016438,2]
[335333711,1724119841550,-500.0,0.00016438,2]
[335333712,1724119841559,-487.50848374,0.00016438,2]
[335333713,1724119841569,-500.0,0.00016438,2]
[335333714,1724119841579,-500.40831756,0.00016438,2]
[335333715,1724119841588,-501.35698621,0.00016438,2]
[335333716,1724119841598,-500.69229615,0.00016438,2]
[335333717,1724119841608,-506.60644559,0.00016438,2]
[335333718,1724119841617,-500.53659719,0.00016438,2]
[335333719,1724119841627,-512.00156767,0.00016438,2]
[335333720,1724119841636,-505.84147928,0.00016438,2]
[335333721,1724119841646,-509.69111664,0.00016438,2]
[335333722,1724119841790,-500.0,0.00016438,2]
[335333723,1724119841801,-500.0,0.00016438,2]
[335333724,1724119841811,-643.05765367,0.00016438,2]
[335333725,1724119841820,-501.60259315,0.00016438,2]
[335333726,1724119841830,-505.8056478,0.00016438,2]
[335333727,1724119841839,-505.72707702,0.00016438,2]
[335333728,1724119841849,-501.50501301,0.00016438,2]
[335333729,1724119841858,-506.25517064,0.00016438,2]
[335333730,1724119841868,-521.69479362,0.00016438,2]
[335333731,1724119841878,-503.85790984,0.00016438,2]
[335333732,1724119841888,-506.0354717,0.00016438,2]
[335333733,1724119841899,-505.84789719,0.00016438,2]
[335333734,1724119841909,-177.81892764,0.00016438,2]
[335333735,1724119841921,-516.90143679,0.00016438,2]
[335333736,1724119841931,-500.0,0.00016438,2]
[335333737,1724119841941,-500.0,0.00016438,2]
[335333738,1724119841954,-500.0,0.00016438,2]
[335333739,1724119841965,-500.0,0.00016438,2]
[335333740,1724119841975,-504.46954326,0.00016438,2]
[335333741,1724119841985,-500.0,0.00016438,2]
[335333742,1724119841995,-500.0,0.00016438,2]
[335333743,1724119842004,-501.55091637,0.00016438,2]
[335333744,1724119842014,-500.0,0.00016438,2]
[335333745,1724119842025,-500.0,0.00016438,2]
[335333746,1724119842037,-279.57087627,0.00016438,2]
[335333747,1724119842049,-562.61799133,0.00016438,2]
[335333748,1724119842060,-501.56559513,0.00016438,2]
[335333749,1724119842070,-504.05457436,0.00016438,2]
[335333750,1724119842079,-510.9339362,0.00016438,2]
[335333751,1724119842089,-818.57,0.00016438,2]
[335333752,1724119842099,-508.16584869,0.00016438,2]
[335333753,1724119842109,-507.58273662,0.00016438,2]
[335333754,1724119842119,-501.56320326,0.00016438,2]
[335333755,1724119842128,-504.5101622,0.00016438,2]
[335333756,1724119842138,-500.0,0.00016438,2]
[335333757,1724119842148,-500.30341784,0.00016438,2]
[335333758,1724119842157,-500.0,0.00016438,2]
[335333759,1724119842166,-506.59543291,0.00016438,2]
[335333760,1724119842175,-500.0,0.00016438,2]
[335333761,1724119842185,-500.0,0.00016438,2]
[335333762,1724119842194,-513.01840787,0.00016438,2]
[335333763,1724119842203,-501.97856749,0.00016438,2]
[335333764,1724119842213,-299.72308501,0.00016438,2]
[335333765,1724119842223,-500.75138636,0.00016438,2]
[335333766,1724119842233,-502.4314806,0.00016438,2]
[335333767,1724119842242,-2034.2,0.00016438,2]